bitfinex/quotes_SOLUSD_20230111
["timestamp","ask_amount","ask_price","bid_price","bid_amount"]
[1673407873501,46.72,16.059,16.043,20.0]
[1673407873719,26.68,16.06,16.044,85.68]
[1673407874119,26.68,16.06,16.045,20.0]
[1673407874324,26.68,16.06,16.046,63.76]
[1673407874536,26.68,16.06,16.047,20.0]
[1673407874745,45.46462213,16.06,16.047,20.0]
[1673407874970,45.46462213,16.06,16.049,20.0]
[1673407875166,26.68,16.06,16.05,20.0]
[1673407875372,26.68,16.06,16.051,17.0]
[1673407876237,45.46462213,16.06,16.051,17.0]
[1673407876447,45.46462213,16.06,16.05,20.0]
[1673407876871,45.46462213,16.06,16.051,20.0]
[1673407878029,26.68,16.06,16.051,20.0]
[1673407878963,45.46462213,16.06,16.051,20.0]
[1673407879393,46.72,16.059,16.04,46.78]
[1673407879603,46.72,16.059,16.04,157.2116]
[1673407879817,18.78462213,16.058,16.04,157.2116]
[1673407880007,46.73,16.057,16.04,157.2116]
[1673407880555,18.78462213,16.056,16.04,157.2116]
[1673407880747,26.51,16.05,16.04,110.4316]
[1673407882021,26.51,16.05,16.041,20.0]
[1673407882419,18.78462213,16.049,16.041,20.0]
[1673407882845,18.78462213,16.049,16.04,110.4316]
[1673407885486,18.78462213,16.049,16.041,20.0]
[1673407886107,37.56924426,16.049,16.041,20.0]
[1673407886628,26.51,16.05,16.041,20.0]
[1673407888328,26.51,16.05,16.042,17.0]
[1673407889586,26.51,16.05,16.041,20.0]
[1673407892215,114.5806,16.056,16.042,46.77]
[1673407892412,133.36522213,16.056,16.043,17.0]
[1673407892741,20.0,16.055,16.044,20.0]
[1673407892951,20.0,16.055,16.042,46.77]
[1673407893266,18.78462213,16.054,16.041,66.77]
[1673407893579,18.78462213,16.054,16.041,20.0]
[1673407893789,17.0,16.053,16.041,20.0]
[1673407893987,26.51,16.05,16.04,110.4316]
[1673407894197,26.51,16.05,16.02,689.7735]
[1673407894198,46.75,16.049,16.02,90.6735]
[1673407894423,1.50469638,16.048,16.03,118.9912]
[1673407894750,132.55,16.04,16.03,118.9912]
[1673407894966,132.96,16.04,16.03,118.9912]
[1673407895157,46.78,16.039,16.03,118.9912]
[1673407895584,0.62241527,16.038,16.03,118.9912]
[1673407895789,20.62241527,16.038,16.025,20.0]
[1673407896004,46.78,16.037,16.023,109.02419738]
[1673407896430,0.62205222,16.037,16.023,109.02419738]
[1673407896642,0.75893842,16.038,16.024,20.0]
[1673407896842,132.96,16.04,16.025,46.82]
[1673407897177,132.96,16.04,16.026,57.0]
[1673407897786,151.74462213,16.04,16.027,46.81]
[1673407898098,151.74462213,16.04,16.028,20.0]
[1673407898308,20.0,16.039,16.028,20.0]
[1673407898517,20.0,16.039,16.026,20.0]
[1673407898728,18.78462213,16.038,16.025,20.0]
[1673407899560,18.78462213,16.038,16.025,40.0]
[1673407899999,18.78462213,16.038,16.026,20.0]
[1673407901055,132.96,16.04,16.027,17.0]
[1673407901263,132.96,16.04,16.028,20.0]
[1673407901474,20.0,16.039,16.028,20.0]
[1673407901814,132.96,16.04,16.028,20.0]
[1673407902000,46.78,16.039,16.028,20.0]
[1673407902211,132.96,16.04,16.027,20.0]
[1673407902424,20.0,16.039,16.027,20.0]
[1673407903149,20.0,16.039,16.026,20.0]
[1673407903571,66.78,16.039,16.026,20.0]
[1673407904712,20.0,16.039,16.026,20.0]
[1673407905363,20.0,16.039,16.027,17.0]
[1673407905672,20.0,16.039,16.028,20.0]
[1673407906083,38.78462213,16.039,16.028,20.0]
[1673407906510,38.78462213,16.039,16.021,54.18]
[1673407906723,0.73452447,16.037,16.021,34.18]
[1673407906931,0.73452447,16.035,16.021,34.18]
[1673407907147,26.47,16.03,16.021,34.18]
[1673407907352,0.64663664,16.029,16.013,30.73]
[1673407907566,0.64663664,16.029,16.014,20.0]
[1673407907776,0.64663664,16.029,16.015,29.97]
[1673407908412,26.57,16.03,16.016,20.0]
[1673407908612,26.57,16.03,16.017,28.05]
[1673407910416,0.65474133,16.029,16.017,28.05]
[1673407910728,26.57,16.03,16.017,28.05]
[1673407911134,26.57,16.03,16.023,17.0]
[1673407912828,26.57,16.03,16.023,37.0]
[1673407914957,38.78462213,16.036,16.023,37.0]
[1673407915973,20.0,16.036,16.023,37.0]
[1673407916182,46.78,16.037,16.024,20.0]
[1673407916394,20.0,16.037,16.025,17.0]
[1673407918613,20.0,16.037,16.023,29.86]
[1673407918925,20.0,16.037,16.024,17.0]
[1673407920281,66.78,16.037,16.019,30.7]
[1673407920499,66.78,16.037,16.025,17.0]
[1673407920710,66.78,16.037,16.023,20.0]
[1673407921560,18.78462213,16.036,16.023,20.0]
[1673407922704,46.79,16.035,16.023,20.0]
[1673407923021,65.57462213,16.035,16.023,20.0]
[1673407923233,18.78462213,16.035,16.023,20.0]
[1673407924078,18.78462213,16.035,16.024,17.0]
[1673407925012,18.78462213,16.035,16.019,30.7]
[1673407925223,18.78462213,16.035,16.023,17.0]
[1673407926600,20.0,16.034,16.023,17.0]
[1673407927002,38.78462213,16.034,16.023,17.0]
[1673407927744,18.78462213,16.034,16.023,37.0]
[1673407927958,18.78462213,16.034,16.023,17.0]
[1673407931012,18.78462213,16.034,16.023,37.0]
[1673407931209,46.79,16.036,16.023,37.0]
[1673407931419,46.79,16.036,16.024,20.0]
[1673407931640,46.78,16.037,16.025,17.0]
[1673407932778,18.78462213,16.036,16.025,17.0]
[1673407939940,18.78462213,16.036,16.025,20.0]
[1673407940157,116.0365,16.038,16.026,17.0]
[1673407940364,116.0365,16.038,16.024,44.23]
[1673407940365,20.0,16.037,16.024,44.23]
[1673407943710,134.82112213,16.038,16.025,20.0]
[1673407943923,20.0,16.037,16.026,17.0]
[1673407946547,20.0,16.037,16.025,17.0]
[1673407946904,134.82112213,16.038,16.025,17.0]
[1673407947073,20.0,16.037,16.025,17.0]
[1673407947715,134.82112213,16.038,16.025,17.0]
[1673407947925,20.0,16.037,16.025,17.0]
[1673407952471,38.78462213,16.037,16.025,17.0]
[1673407953007,20.0,16.037,16.025,17.0]
[1673407953185,38.78462213,16.037,16.025,17.0]
[1673407954046,20.0,16.037,16.025,17.0]
[1673407954782,38.78462213,16.037,16.025,17.0]
[1673407955109,38.78462213,16.037,16.024,17.0]
[1673407958357,38.78462213,16.037,16.023,17.0]
[1673407958983,38.78462213,16.037,16.02,45.69]
[1673407959191,63.79,16.036,16.02,45.69]
[1673407959395,63.79,16.036,16.018,45.19]
[1673407959600,38.78462213,16.035,16.018,45.19]
[1673407959811,20.0,16.033,16.018,45.19]
[1673407960234,0.62865546,16.032,16.018,45.19]
[1673407960655,20.0,16.033,16.018,45.19]
[1673407961809,20.0,16.033,16.019,20.0]
[1673407962344,65.57462213,16.034,16.023,20.0]
[1673407962549,18.78462213,16.034,16.023,69.4]
[1673407963073,18.78462213,16.034,16.023,49.4]
[1673407963294,18.78462213,16.034,16.023,17.0]
[1673407968107,65.57462213,16.034,16.018,55.84]
[1673407968528,20.0,16.033,16.018,55.84]
[1673407968963,46.79,16.034,16.023,20.0]
[1673407969166,20.0,16.036,16.023,20.0]
[1673407969372,38.78462213,16.036,16.023,20.0]
[1673407969601,38.78462213,16.036,16.023,33.89]
[1673407969809,38.78462213,16.036,16.024,17.0]
[1673407970022,20.0,16.036,16.024,17.0]
[1673407970524,20.0,16.036,16.023,17.0]
[1673407971386,63.79,16.035,16.02,34.87]
[1673407971579,20.0,16.034,16.019,34.3]
[1673407971919,46.8,16.033,16.018,34.3]
[1673407972103,20.0,16.032,16.015,32.52]
[1673407972314,20.0,16.032,16.016,20.0]
[1673407972545,46.8,16.033,16.017,31.35]
[1673407972855,66.79,16.036,16.023,17.0]
[1673407973050,85.57462213,16.036,16.023,17.0]
[1673407973805,17.0,16.035,16.019,30.08]
[1673407974121,20.0,16.033,16.018,20.0]
[1673407974750,20.0,16.033,16.017,31.19]
[1673407977376,20.0,16.033,16.023,17.0]
[1673407981163,26.44,16.03,16.017,31.19]
[1673407981363,26.44,16.03,16.011,134.0739]
[1673407981364,135.6822,16.029,16.013,17.42]
[1673407981685,1.76818741,16.028,16.015,20.0]
[1673407981886,26.54,16.03,16.016,9.08]
[1673407982079,26.54,16.03,16.017,20.0]
[1673407982295,26.54,16.03,16.018,10.94]
[1673407982732,26.54,16.03,16.019,20.0]
[1673407982938,26.54,16.03,16.02,17.0]
[1673407983894,26.54,16.03,16.019,20.0]
[1673407984086,66.81,16.029,16.014,16.61]
[1673407984290,0.79584903,16.028,16.013,16.49]
[1673407984503,20.79584903,16.028,16.013,16.49]
[1673407985563,20.79584903,16.028,16.014,0.96]
[1673407985767,20.79584903,16.028,16.014,17.96]
[1673407985977,20.79584903,16.028,16.015,19.32]
[1673407986179,20.79584903,16.028,16.016,17.0]
[1673407986836,20.0,16.028,16.016,17.0]
[1673407987049,0.67832398,16.027,16.016,17.0]
[1673407987259,0.67832398,16.028,16.016,17.0]
[1673407987572,0.67832398,16.028,16.017,20.0]
[1673407987782,129.1326,16.029,16.018,17.0]
[1673407988626,66.79,16.036,16.019,40.23]
[1673407988842,20.0,16.035,16.02,132.1001]
[1673407989037,20.0,16.035,16.021,21.55]
[1673407989361,20.0,16.035,16.021,41.55]
[1673407989761,20.0,16.035,16.022,17.0]
[1673407990930,66.79,16.035,16.022,17.0]
[1673407991137,85.57462213,16.035,16.022,17.0]
[1673407991559,85.57462213,16.035,16.02,115.1001]
[1673407992105,85.57462213,16.035,16.021,17.0]
[1673407992737,85.57462213,16.035,16.021,39.37]
[1673407993466,85.57462213,16.035,16.021,17.0]
[1673407999143,26.53,16.03,16.021,17.0]
[1673407999667,26.53,16.03,16.021,37.0]
[1673408000513,26.53,16.03,16.022,20.0]
[1673408000913,26.53,16.03,16.023,17.0]
[1673408001119,66.79,16.036,16.023,17.0]
[1673408005112,46.79,16.036,16.023,17.0]
[1673408005323,66.78,16.037,16.023,17.0]
[1673408018142,85.56462213,16.037,16.021,20.0]
[1673408018351,85.56462213,16.037,16.02,115.1001]
[1673408018558,85.56462213,16.037,16.021,1.92]
[1673408019081,85.56462213,16.037,16.021,21.92]
[1673408020464,66.78,16.037,16.021,21.92]
[1673408020783,66.78,16.037,16.02,115.1001]
[1673408021099,85.56462213,16.037,16.02,115.1001]
[1673408022465,85.56462213,16.037,16.021,20.0]
[1673408022991,85.56462213,16.037,16.022,17.0]
[1673408027909,20.0,16.035,16.021,17.0]
[1673408028122,20.0,16.033,16.021,17.0]
[1673408028330,46.8,16.032,16.021,17.0]
[1673408028758,26.57,16.03,16.021,17.0]
[1673408029074,46.81,16.029,16.021,17.0]
[1673408029615,46.81,16.029,16.02,115.1001]
[1673408032124,26.57,16.03,16.02,115.1001]
[1673408040534,26.57,16.03,16.016,46.85]
[1673408040743,134.5293,16.029,16.014,30.81]
[1673408041066,87.41767912,16.028,16.012,112.8163]
[1673408041378,2.021702,16.026,16.012,112.8163]
[1673408041595,20.0,16.025,16.012,112.8163]
[1673408041902,22.021702,16.025,16.012,140.8363]
[1673408042094,2.021702,16.025,16.012,140.8363]
[1673408042510,2.021702,16.025,16.013,20.0]
[1673408042724,2.021702,16.026,16.013,20.0]
[1673408042949,48.841702,16.025,16.013,20.0]
[1673408043147,18.78462213,16.026,16.014,20.0]
[1673408043357,132.71,16.04,16.015,64.81]
[1673408043563,20.0,16.037,16.017,20.0]
[1673408043785,20.0,16.035,16.019,20.0]
[1673408043986,20.0,16.035,16.02,46.83]
[1673408044209,20.0,16.035,16.021,20.0]
[1673408044824,132.86,16.05,16.023,1.76212341]
[1673408045034,26.6,16.05,16.025,1.88296027]
[1673408045249,117.2006,16.056,16.026,48.74]
[1673408045456,117.2006,16.056,16.027,24.19938]
[1673408045791,46.72,16.059,16.028,74.96894]
[1673408046102,46.71,16.063,16.031,394.3]
[1673408046299,117.2006,16.065,16.032,92.91714]
[1673408046513,117.2006,16.065,16.034,20.0]
[1673408046723,117.2006,16.065,16.04,26.58]
[1673408046940,117.2006,16.065,16.041,84.73]
[1673408047140,117.2006,16.065,16.042,20.96]
[1673408047350,117.2006,16.065,16.043,84.73]
[1673408047571,117.2006,16.065,16.044,20.96]
[1673408047768,117.2006,16.065,16.045,67.72]
[1673408048100,117.2006,16.065,16.046,20.96]
[1673408048341,117.2006,16.065,16.047,47.71]
[1673408048637,117.2006,16.065,16.048,40.96]
[1673408048828,117.2006,16.065,16.049,47.71]
[1673408049038,117.2006,16.065,16.05,20.96]
[1673408049366,117.2006,16.065,16.052,20.0]
[1673408049676,117.2006,16.065,16.053,46.74]
[1673408049874,117.2006,16.065,16.054,17.0]
[1673408050827,117.2006,16.065,16.053,17.0]
[1673408052111,117.2006,16.065,16.052,66.74]
[1673408052292,117.2006,16.065,16.052,20.0]
[1673408053758,26.21,16.06,16.05,20.0]
[1673408053966,66.72,16.059,16.043,157.365]
[1673408054181,66.72,16.059,16.044,20.0]
[1673408055032,46.72,16.059,16.044,20.0]
[1673408055356,26.21,16.06,16.045,80.17040541]
[1673408055561,26.21,16.06,16.046,20.0]
[1673408055893,26.21,16.06,16.048,20.0]
[1673408056274,26.21,16.06,16.05,20.0]
[1673408056810,26.21,16.06,16.051,17.0]
[1673408057029,26.21,16.06,16.052,20.0]
[1673408062201,26.21,16.06,16.05,20.0]
[1673408068174,26.39,16.06,16.05,20.0]
[1673408072290,26.44,16.06,16.05,20.0]
[1673408074797,26.44,16.06,16.049,20.0]
[1673408075229,26.44,16.06,16.05,17.0]
[1673408079111,46.71,16.063,16.05,17.0]
[1673408081853,46.71,16.063,16.05,37.0]
[1673408084295,46.71,16.063,16.051,20.0]
[1673408084510,135.98522213,16.065,16.051,20.0]
[1673408084511,182.68522213,16.065,16.052,17.0]
[1673408085036,163.9006,16.065,16.052,17.0]
[1673408085344,117.2006,16.065,16.052,17.0]
[1673408086603,26.44,16.06,16.048,20.0]
[1673408086821,63.72,16.059,16.043,46.77]
[1673408087221,63.72,16.059,16.042,66.77]
[1673408087431,20.0,16.058,16.042,66.77]
[1673408087641,46.73,16.057,16.042,66.77]
[1673408088065,20.0,16.056,16.042,20.0]
[1673408088277,46.73,16.055,16.042,20.0]
[1673408088497,46.73,16.055,16.041,135.4046]
[1673408088498,46.73,16.055,16.041,115.4046]
[1673408088699,17.0,16.054,16.041,115.4046]
[1673408088913,46.74,16.053,16.041,115.4046]
[1673408091321,17.0,16.054,16.042,17.0]
[1673408091641,46.74,16.053,16.042,17.0]
[1673408092801,46.73,16.055,16.042,17.0]
[1673408093007,114.7434,16.056,16.042,17.0]
[1673408093214,114.7434,16.056,16.044,20.0]
[1673408093429,114.7434,16.056,16.045,17.0]
[1673408094075,114.7434,16.056,16.046,20.0]
[1673408094487,114.7434,16.056,16.047,17.0]
[1673408095327,20.0,16.059,16.047,17.0]
[1673408095543,66.72,16.059,16.047,17.0]
[1673408095745,20.0,16.059,16.047,17.0]
[1673408095957,131.83,16.06,16.047,17.0]
[1673408096175,131.83,16.06,16.049,20.0]
[1673408096176,26.23,16.06,16.049,20.0]
[1673408096387,46.71,16.064,16.05,20.0]
[1673408097341,46.71,16.064,16.05,66.75]
[1673408097656,46.7,16.067,16.05,66.75]
[1673408097847,20.0,16.064,16.051,37.0]
[1673408098270,20.0,16.066,16.051,37.0]
[1673408098482,163.9006,16.065,16.051,37.0]
[1673408098918,117.2006,16.065,16.052,20.0]
[1673408099847,117.2006,16.065,16.052,66.74]
[1673408100490,117.2006,16.065,16.053,17.0]
[1673408102275,46.69,16.068,16.054,20.0]
[1673408102489,46.69,16.069,16.054,68.65]
[1673408102696,26.68,16.07,16.056,20.0]
[1673408102912,20.0,16.069,16.057,17.0]
[1673408104260,20.0,16.069,16.054,66.73]
[1673408104465,46.69,16.068,16.054,20.0]
[1673408105313,26.68,16.07,16.056,20.0]
[1673408105529,26.68,16.07,16.057,66.73]
[1673408105856,26.68,16.07,16.058,20.0]
[1673408106177,26.68,16.07,16.059,20.0]
[1673408110162,26.68,16.07,16.058,20.0]
[1673408110497,26.68,16.07,16.058,40.0]
[1673408111018,26.68,16.07,16.059,20.0]
[1673408112592,20.0,16.069,16.058,20.0]
[1673408112795,85.47462213,16.069,16.048,115.5793]
[1673408112999,26.31,16.06,16.048,115.5793]
[1673408113424,26.31,16.06,16.049,20.0]
[1673408114471,26.31,16.06,16.05,17.0]
[1673408116678,26.31,16.06,16.048,115.5793]
[1673408116893,46.72,16.059,16.049,20.0]
[1673408117841,46.72,16.059,16.048,115.5793]
[1673408118053,20.0,16.058,16.042,66.77]
[1673408118257,46.73,16.057,16.04,159.0434]
[1673408118463,46.73,16.057,16.04,112.2634]
[1673408118464,17.0,16.056,16.04,112.2634]
[1673408118668,46.73,16.055,16.04,112.2634]
[1673408118880,37.0,16.054,16.04,112.2634]
[1673408119106,26.46,16.05,16.04,112.2634]
[1673408119947,20.0,16.049,16.04,112.2634]
[1673408120362,20.0,16.049,16.033,46.8]
[1673408120571,20.0,16.049,16.034,116.8885]
[1673408120781,20.0,16.049,16.035,66.79]
[1673408120982,46.46,16.05,16.036,20.0]
[1673408121610,46.46,16.05,16.037,17.0]
[1673408121947,26.46,16.05,16.038,20.0]
[1673408122450,26.46,16.05,16.039,17.0]
[1673408122659,46.75,16.049,16.04,20.0]
[1673408123304,46.75,16.049,16.041,17.0]
[1673408123509,26.46,16.05,16.041,17.0]
[1673408128147,26.5,16.05,16.041,17.0]
[1673408128889,26.5,16.05,16.04,20.0]
[1673408129205,26.5,16.05,16.038,40.0]
[1673408130342,26.5,16.05,16.039,17.0]
[1673408130549,26.5,16.05,16.04,20.0]
[1673408130767,26.5,16.05,16.041,17.0]
[1673408133612,46.74,16.053,16.041,17.0]
[1673408133827,46.74,16.053,16.041,37.0]
[1673408135082,46.73,16.054,16.041,37.0]
[1673408135306,46.73,16.055,16.042,20.0]
[1673408137499,46.73,16.055,16.043,0.96]
[1673408137819,46.72,16.059,16.044,20.96]
[1673408138007,26.59,16.06,16.045,67.72]
[1673408138216,26.59,16.06,16.046,0.96]
[1673408138444,26.59,16.06,16.047,47.71]
[1673408138640,20.0,16.064,16.048,20.0]
[1673408138851,20.0,16.064,16.049,66.75]
[1673408139177,26.5,16.06,16.05,20.0]
[1673408141919,26.5,16.06,16.05,40.0]
[1673408142318,26.26,16.06,16.05,40.0]
[1673408142973,26.26,16.06,16.051,17.0]
[1673408143594,162.9613,16.065,16.051,37.0]
[1673408143794,162.9613,16.065,16.051,83.74]
[1673408144634,20.0,16.064,16.051,83.74]
[1673408145153,20.0,16.064,16.051,63.74]
[1673408149794,20.0,16.064,16.051,17.0]
[1673408150005,20.0,16.064,16.051,63.74]
[1673408150418,20.0,16.064,16.05,20.0]
[1673408150419,26.46,16.06,16.05,20.0]
[1673408150631,20.0,16.059,16.05,20.0]
[1673408151058,26.46,16.06,16.05,20.0]
[1673408152109,26.46,16.06,16.049,20.0]
[1673408155065,26.46,16.06,16.049,66.75]
[1673408155690,26.46,16.06,16.049,20.0]
[1673408156503,26.46,16.06,16.049,40.0]
[1673408157378,116.2613,16.065,16.049,86.75]
[1673408157583,99.42,16.08,16.05,59.00956263]
[1673408157778,26.53,16.08,16.051,73.92862]
[1673408157994,132.39,16.09,16.052,9.10817]
[1673408158232,46.63,16.089,16.06,26.44]
[1673408158541,46.63,16.089,16.061,68.63]
[1673408158727,46.63,16.089,16.062,115.081]
[1673408158945,20.0,16.088,16.063,68.63]
[1673408159155,46.64,16.087,16.063,83.6187525]
[1673408159371,46.64,16.087,16.064,105.68062688]
[1673408159699,46.64,16.087,16.065,133.62757092]
[1673408159899,66.63,16.089,16.066,20.0]
[1673408160098,66.63,16.089,16.067,66.7]
[1673408160315,20.0,16.088,16.068,20.0]
[1673408160529,46.64,16.087,16.069,66.69]
[1673408161057,46.63,16.089,16.07,20.0]
[1673408161246,46.63,16.089,16.071,46.69]
[1673408161457,46.63,16.089,16.07,46.69]
[1673408161668,46.63,16.089,16.069,20.0]
[1673408162294,46.63,16.089,16.069,66.69]
[1673408162513,17.0,16.082,16.069,66.69]
[1673408162722,17.0,16.082,16.069,20.0]
[1673408162936,63.65,16.082,16.068,20.0]
[1673408163371,26.26,16.08,16.068,20.0]
[1673408163687,26.26,16.08,16.066,20.0]
[1673408163872,26.26,16.08,16.068,20.0]
[1673408164078,46.65,16.082,16.068,40.0]
[1673408164510,20.0,16.087,16.069,20.0]
[1673408164718,46.64,16.086,16.069,20.0]
[1673408165574,63.65,16.082,16.069,20.0]
[1673408166611,20.0,16.079,16.065,46.7]
[1673408166837,46.66,16.078,16.063,66.71]
[1673408168315,46.66,16.079,16.063,66.71]
[1673408168513,17.0,16.078,16.063,66.71]
[1673408168835,46.67,16.077,16.063,66.71]
[1673408169447,46.66,16.079,16.063,66.71]
[1673408171248,46.64,16.086,16.065,96.677505]
[1673408171462,20.0,16.082,16.066,20.0]
[1673408171654,20.0,16.082,16.067,46.7]
[1673408171860,20.0,16.082,16.068,20.0]
[1673408172092,46.64,16.086,16.068,20.0]
[1673408172406,26.39,16.08,16.05,20.0]
[1673408172596,26.39,16.08,16.06,20.0]
[1673408172597,26.33,16.07,16.06,20.0]
[1673408172807,26.33,16.07,16.057,111.241]
[1673408173023,26.33,16.07,16.058,20.0]
[1673408173233,26.33,16.07,16.058,66.72]
[1673408174292,26.33,16.07,16.059,20.0]
[1673408175662,26.33,16.07,16.056,40.0]
[1673408176616,26.33,16.07,16.057,20.0]
[1673408176813,26.33,16.07,16.058,20.0]
[1673408177029,26.33,16.07,16.059,20.0]
[1673408177751,26.43,16.07,16.059,20.0]
[1673408179884,26.43,16.07,16.059,66.72]
[1673408180200,26.43,16.07,16.06,20.0]
[1673408180389,46.68,16.073,16.06,20.0]
[1673408180599,17.0,16.072,16.06,20.0]
[1673408181865,46.68,16.073,16.06,20.0]
[1673408182595,65.46462213,16.073,16.06,20.0]
[1673408182817,17.0,16.072,16.06,20.0]
[1673408183025,65.46462213,16.073,16.06,20.0]
[1673408185247,17.0,16.072,16.06,20.0]
[1673408185564,46.69,16.071,16.06,20.0]
[1673408186605,46.68,16.073,16.06,20.0]
[1673408186813,17.0,16.072,16.06,20.0]
[1673408191973,20.0,16.071,16.06,20.0]
[1673408192184,17.0,16.07,16.058,20.0]
[1673408192376,18.78462213,16.072,16.058,20.0]
[1673408192587,20.0,16.07,16.058,20.0]
[1673408192797,17.0,16.069,16.058,20.0]
[1673408193216,46.69,16.071,16.058,20.0]
[1673408194373,26.31,16.07,16.058,20.0]
[1673408195103,26.31,16.07,16.059,20.0]
[1673408195318,26.31,16.07,16.06,20.0]
[1673408196576,26.31,16.07,16.058,46.72]
[1673408196577,26.31,16.07,16.059,20.0]
[1673408197957,17.0,16.069,16.059,20.0]
[1673408198156,26.31,16.07,16.058,20.0]
[1673408198367,26.31,16.07,16.059,20.0]
[1673408198579,66.68,16.073,16.059,20.0]
[1673408198788,17.0,16.072,16.059,20.0]
[1673408205409,17.0,16.072,16.058,66.72]
[1673408208251,17.0,16.072,16.059,20.0]
[1673408208456,17.0,16.072,16.06,20.0]
[1673408208980,20.0,16.071,16.06,20.0]
[1673408209192,26.43,16.07,16.059,20.0]
[1673408209507,17.0,16.072,16.058,20.0]
[1673408209833,17.0,16.072,16.06,20.0]
[1673408210443,17.0,16.072,16.059,66.72]
[1673408210654,26.43,16.07,16.059,66.72]
[1673408210881,17.0,16.069,16.059,20.0]
[1673408211087,17.0,16.069,16.057,20.0]
[1673408211303,17.0,16.069,16.058,46.72]
[1673408211515,17.0,16.069,16.059,20.0]
[1673408212141,17.0,16.069,16.056,46.73]
[1673408212465,20.0,16.068,16.056,46.73]
[1673408212654,17.0,16.067,16.056,46.73]
[1673408212995,111.1412,16.074,16.057,20.0]
[1673408213198,111.1412,16.074,16.058,46.72]
[1673408213527,111.1412,16.074,16.059,20.0]
[1673408213724,111.1412,16.074,16.06,66.72]
[1673408213938,20.0,16.073,16.06,20.0]
[1673408214129,17.0,16.072,16.059,20.0]
[1673408215512,17.0,16.072,16.058,20.0]
[1673408215725,17.0,16.072,16.059,46.72]
[1673408216048,17.0,16.072,16.06,20.0]
[1673408216678,17.0,16.072,16.059,20.0]
[1673408217075,66.68,16.073,16.059,20.0]
[1673408217290,20.0,16.073,16.059,20.0]
[1673408217503,20.0,16.073,16.06,46.72]
[1673408218238,66.68,16.073,16.059,20.0]
[1673408218574,17.0,16.072,16.058,66.72]
[1673408219941,17.0,16.072,16.059,20.0]
[1673408220460,17.0,16.072,16.058,46.72]
[1673408220659,132.03,16.07,16.051,108.8124]